{"text_format":"3","workbook":"xlsx","n_sheets":3,"sheets":["Tabuľa","Denník výdavkov","Údaje osobných výdavkov"],"not_rendered":{"charts":1,"defined_names":5,"pivot_tables":1},"read":"whole","date_system":"1900"}

{"sheet":"Tabuľa","index":0,"n_rows":1,"n_cols":6,"rows_kept":1,"merged":[[0,1,0,4],[2,1,2,2],[2,3,2,4]]}
[null,"tabuľa osobných výdavkov",{"$nulls":3},"do denníka výdavkov >"]

{"sheet":"Denník výdavkov","index":1,"n_rows":22,"n_cols":6,"rows_kept":22,"merged":[[0,1,0,4]]}
[null,"denník výdavkov",{"$nulls":3},"< na tabuľu"]
[null,"dátum","kategória","podkategória","suma","poznámka"]
[null,{"$f":"DATE(YEAR(TODAY()),3,2)","v":"2022-03-02"},"Bývanie","Internet",{"v":29,"d":"29.00 EUR"}]
[null,{"$f":"DATE(YEAR(TODAY()),3,2)","v":"2022-03-02"},"Bývanie","Pevná linka",{"v":39,"d":"39.00 EUR"}]
[null,{"$f":"DATE(YEAR(TODAY()),3,4)","v":"2022-03-04"},"Bývanie","Elektrina",{"v":62,"d":"62.00 EUR"}]
[null,{"$f":"DATE(YEAR(TODAY()),3,4)","v":"2022-03-04"},"Zábava","Telocvičňa",{"v":29,"d":"29.00 EUR"}]
[null,{"$f":"DATE(YEAR(TODAY()),3,6)","v":"2022-03-06"},"Predmety dennej spotreby","Oblečenie",{"v":42,"d":"42.00 EUR"}]
[null,{"$f":"DATE(YEAR(TODAY()),3,6)","v":"2022-03-06"},"Doprava","Predplatný lístok na MHD",{"v":21,"d":"21.00 EUR"},"Predplatný lístok na marec"]
[null,{"$f":"DATE(YEAR(TODAY()),4,2)","v":"2022-04-02"},"Doprava","Palivo",{"v":54,"d":"54.00 EUR"}]
[null,{"$f":"DATE(YEAR(TODAY()),4,2)","v":"2022-04-02"},"Predmety dennej spotreby","Kaderník",{"v":12,"d":"12.00 EUR"}]
[null,"2022-04-02","Predmety dennej spotreby","Čaj/káva",{"v":12,"d":"12.00 EUR"}]
[null,"2022-04-02","Predmety dennej spotreby","Sladkosti/zákusky",{"v":2.75,"d":"2.75 EUR"}]
[null,{"$f":"DATE(YEAR(TODAY()),4,4)","v":"2022-04-04"},"Bývanie","Internet",{"v":29,"d":"29.00 EUR"}]
[null,{"$f":"DATE(YEAR(TODAY()),4,4)","v":"2022-04-04"},"Bývanie","Pevná linka",{"v":39,"d":"39.00 EUR"}]
[null,{"$f":"DATE(YEAR(TODAY()),4,4)","v":"2022-04-04"},"Bývanie","Elektrina",{"v":62,"d":"62.00 EUR"}]
[null,{"$f":"DATE(YEAR(TODAY()),4,4)","v":"2022-04-04"},"Predmety dennej spotreby","Kontaktné šošovky",{"v":29,"d":"29.00 EUR"}]
[null,{"$f":"DATE(YEAR(TODAY()),4,6)","v":"2022-04-06"},"Predmety dennej spotreby","Oblečenie",{"v":42,"d":"42.00 EUR"}]
[null,{"$f":"DATE(YEAR(TODAY()),4,6)","v":"2022-04-06"},"Doprava","Predplatný lístok na MHD",{"v":21,"d":"21.00 EUR"},"Predplatný lístok na apríl"]
[null,{"$f":"DATE(YEAR(TODAY()),5,1)","v":"2022-05-01"},"Doprava","Palivo",{"v":54,"d":"54.00 EUR"}]
[null,{"$f":"DATE(YEAR(TODAY()),6,1)","v":"2022-06-01"},"Predmety dennej spotreby","Kaderník",{"v":12,"d":"12.00 EUR"}]
[null,{"$f":"DATE(YEAR(TODAY()),7,1)","v":"2022-07-01"},"Zábava","Kino",{"v":21,"d":"21.00 EUR"},"Večer filmovej klasiky"]
[null,{"$f":"DATE(YEAR(TODAY()),8,1)","v":"2022-08-01"},"Predmety dennej spotreby","Sladkosti/zákusky",{"v":2.75,"d":"2.75 EUR"}]

{"sheet":"Údaje osobných výdavkov","index":2,"n_rows":11,"n_cols":7,"rows_kept":11,"hidden":true,"merged":[[0,1,0,3],[1,1,1,3]]}
[null,"Údaje osobných výdavkov"]
[null,"Kontingenčná tabuľka zobrazená nižšie poskytuje zdroj údajov kontingenčnému grafu zobrazujúcemu osobné výdavky na tabuli. Každá zmena, ktorú uskutočníte, sa môže prejaviť zmenami v kontingenčnom grafe alebo spôsobiť chyby."]
[null,"Súčet z suma","Označenia stĺpcov"]
[null,"Označenia riadkov","Zábava","Doprava","Predmety dennej spotreby","Bývanie","Celkový súčet"]
[null,"Mar",29,21,42,130,222]
[null,"Apr",null,75,97.75,130,302.75]
[null,"May",null,54,null,null,54]
[null,"Jun",null,null,12,null,12]
[null,"Jul",21,{"$nulls":3},21]
[null,"Aug",null,null,2.75,null,2.75]
[null,"Celkový súčet",50,150,154.5,260,614.5]